fUST/lending_fUST_20250328
["ID","MTS","AMOUNT","RATE_DAILY","PERIOD"]
[356756400,1743120646175,-151.0,0.00029,7]
[356756401,1743120646184,-151.0,0.00029,7]
[356756402,1743120646193,-296.592108,0.00029,7]
[356756403,1743120646203,-296.592108,0.00029,7]
[356756404,1743120646213,-189.6,0.00029,7]
[356756405,1743120646222,-189.6,0.00029,7]
[356756406,1743120646232,-500.0,0.00029,5]
[356756407,1743120646241,-200.168136,0.00029,7]
[356756408,1743120646251,-200.168136,0.00029,7]
[356756409,1743120646260,-151.0,0.00029,7]
[356756410,1743120646270,-5931.495755,0.00029,7]
[356756411,1743120646279,-5931.495755,0.00029,7]
[356756412,1743120646288,-151.0,0.00029,7]
[356756413,1743120646298,-1008.90752554,0.00029,2]
[356756414,1743120646307,-166.84759585,0.00029019,2]
[356756415,1743120646316,-587.0,0.000291,2]
[356756416,1743120646327,-418.47884548,0.00029466,2]
[356756417,1743120646336,-160.0,0.00029626,2]
[356756418,1743120646346,-834.95724862,0.00029627,2]
[356756419,1743120646355,-185.14255,0.0002999,7]
[356756420,1743120646365,-185.14255,0.0002999,7]
[356756421,1743120646374,-260.672698,0.0002999,7]
[356756422,1743120646384,-260.672698,0.0002999,7]
[356756423,1743120646393,-151.0,0.0002999,7]
[356756424,1743120646403,-432.648596,0.0002999,7]
[356756425,1743120646413,-432.648596,0.0002999,7]
[356756426,1743120646422,-151.0,0.0002999,7]
[356756427,1743120646432,-280.961844,0.0002999,7]
[356756428,1743120646441,-280.961844,0.0002999,7]
[356756429,1743120646450,-151.0,0.0002999,7]
[356756430,1743120646459,-151.0,0.0002999,7]
[356756431,1743120646469,-1286.449204,0.0002999,7]
[356756432,1743120646478,-1286.449204,0.0002999,7]
[356756433,1743120646487,-151.0,0.0002999,7]
[356756434,1743120646496,-151.0,0.0002999,7]
[356756435,1743120646505,-151.0,0.0002999,7]
[356756436,1743120646514,-296.592108,0.0002999,7]
[356756437,1743120646523,-296.592108,0.0002999,7]
[356756438,1743120646532,-189.6,0.0002999,7]
[356756439,1743120646541,-189.6,0.0002999,7]
[356756440,1743120646553,-200.168136,0.0002999,7]
[356756441,1743120646563,-200.168136,0.0002999,7]
[356756442,1743120646573,-151.0,0.0002999,7]
[356756443,1743120646582,-21400.9451483,0.0002999,2]
[356756444,1743120646591,-5931.495755,0.0002999,7]
[356756445,1743120646600,-5931.495755,0.0002999,7]
[356756446,1743120646609,-151.0,0.0002999,7]
[356756447,1743120646618,-25658.82851313,0.0003,2]
[356756448,1743120646628,-185.14255,0.0003,7]
[356756449,1743120646637,-185.14255,0.0003,7]
[356756450,1743120646647,-260.672698,0.0003,7]
[356756451,1743120646655,-260.672698,0.0003,7]
[356756452,1743120646665,-151.0,0.0003,7]
[356756453,1743120646674,-432.648596,0.0003,7]
[356756454,1743120646683,-432.648596,0.0003,7]
[356756455,1743120646693,-151.0,0.0003,7]
[356756456,1743120646702,-280.961844,0.0003,7]
[356756457,1743120646711,-280.961844,0.0003,7]
[356756458,1743120646720,-151.0,0.0003,7]
[356756459,1743120646729,-1286.449204,0.0003,7]
[356756460,1743120646738,-1286.449204,0.0003,7]
[356756461,1743120646747,-151.0,0.0003,7]
[356756462,1743120646756,-151.0,0.0003,7]
[356756463,1743120646765,-151.0,0.0003,7]
[356756464,1743120646774,-296.592108,0.0003,7]
[356756465,1743120646783,-296.592108,0.0003,7]
[356756466,1743120646792,-189.6,0.0003,7]
[356756467,1743120646801,-189.6,0.0003,7]
[356756468,1743120646811,-200.168136,0.0003,7]
[356756469,1743120646820,-200.168136,0.0003,7]
[356756470,1743120646829,-151.0,0.0003,7]
[356756471,1743120646838,-5931.495755,0.0003,7]
[356756472,1743120646847,-5931.495755,0.0003,7]
[356756473,1743120646857,-151.0,0.0003,7]
[356756474,1743120646867,-823.0,0.00031532,2]
[356756475,1743120646877,-179.82017982,0.00033691,11]
[356756476,1743120646886,-1513.4866798,0.000339,7]
[356756477,1743120646895,-1152.0,0.00034167,2]
[356756478,1743120646905,-1000.0,0.00034452,5]
[356756479,1743120646914,-1000.0,0.00034452,5]
[356756480,1743120646923,-1000.0,0.00034452,5]
[356756481,1743120646933,-1000.0,0.00034452,5]
[356756482,1743120646942,-1000.0,0.00034452,5]
[356756483,1743120646951,-435.50413773,0.00034452,5]
[356756484,1743120646960,-266.11954729,0.00034452,5]
[356756485,1743120646970,-1000.0,0.00034452,5]
[356756486,1743120646980,-434.854,0.000347,30]
[356756487,1743120646989,-151.0,0.000349,16]
[356756488,1743120646999,-21400.9451483,0.0003498,2]
[356756489,1743120647008,-296.592108,0.0003499,14]
[356756490,1743120647018,-296.592108,0.0003499,14]
[356756491,1743120647027,-189.6,0.0003499,14]
[356756492,1743120647037,-189.6,0.0003499,14]
[356756493,1743120647046,-200.168136,0.0003499,14]
[356756494,1743120647055,-200.168136,0.0003499,14]
[356756495,1743120647064,-151.0,0.0003499,14]
[356756496,1743120647073,-5931.495755,0.0003499,14]
[356756497,1743120647082,-5931.495755,0.0003499,14]
[356756498,1743120647091,-151.0,0.0003499,14]
[356756499,1743120647243,-10552.31446557,0.00035,2]
[356756500,1743120647254,-878.98655151,0.00035,2]
[356756501,1743120647264,-432.648596,0.00035,14]
[356756502,1743120647274,-432.648596,0.00035,14]
[356756503,1743120647283,-151.0,0.00035,14]
[356756504,1743120647292,-280.961844,0.00035,14]
[356756505,1743120647302,-280.961844,0.00035,14]
[356756506,1743120647311,-281.097008,0.00035,14]
[356756507,1743120647321,-1286.449204,0.00035,14]
[356756508,1743120647333,-1286.449204,0.00035,14]
[356756509,1743120647343,-151.0,0.00035,14]
[356756510,1743120647352,-151.0,0.00035,14]
[356756511,1743120647361,-151.0,0.00035,14]
[356756512,1743120647370,-1249.29409315,0.00035,5]
[356756513,1743120647380,-1286.449204,0.00035881,14]
[356756514,1743120647389,-1286.449204,0.00035881,14]
[356756515,1743120647398,-151.0,0.00035881,14]
[356756516,1743120647407,-151.0,0.00035881,14]
[356756517,1743120647416,-263.632462,0.00035881,14]
[356756518,1743120647426,-296.592108,0.00035881,14]
[356756519,1743120647435,-296.592108,0.00035881,14]
[356756520,1743120647444,-189.6,0.00035881,14]
[356756521,1743120647453,-189.6,0.00035881,14]
[356756522,1743120647462,-200.168136,0.00035881,14]
[356756523,1743120647471,-200.168136,0.00035881,14]
[356756524,1743120647480,-151.0,0.00035881,14]
[356756525,1743120647489,-5931.495755,0.00035881,14]
[356756526,1743120647498,-5931.495755,0.00035881,14]
[356756527,1743120647507,-151.0,0.00035881,14]
[356756528,1743120647517,-500.0,0.0003589,2]
[356756529,1743120647527,-1105.11236133,0.00035934,11]
[356756530,1743120647535,-160.0,0.0003599,3]
[356756531,1743120647545,-200.168136,0.0003599,14]
[356756532,1743120647555,-200.168136,0.0003599,14]
[356756533,1743120647567,-151.0,0.0003599,14]
[356756534,1743120647576,-21400.9451483,0.0003599,3]
[356756535,1743120647586,-5931.495755,0.0003599,14]
[356756536,1743120647595,-5931.495755,0.0003599,14]
[356756537,1743120647607,-151.0,0.0003599,14]
[356756538,1743120647616,-7739.19563804,0.00036,2]
[356756539,1743120647625,-185.14255,0.00036,14]
[356756540,1743120647635,-185.14255,0.00036,14]
[356756541,1743120647644,-260.672698,0.00036,14]
[356756542,1743120647653,-260.672698,0.00036,14]
[356756543,1743120647663,-151.0,0.00036,16]
[356756544,1743120647672,-151.0,0.00036,14]
[356756545,1743120647682,-432.648596,0.00036,14]
[356756546,1743120647692,-432.648596,0.00036,14]
[356756547,1743120647702,-151.0,0.00036,14]
[356756548,1743120647712,-280.961844,0.00036,14]
[356756549,1743120647723,-280.961844,0.00036,14]
[356756550,1743120647732,-296.592108,0.00036,14]
[356756551,1743120647741,-296.592108,0.00036,14]
[356756552,1743120647751,-189.6,0.00036,14]
[356756553,1743120647760,-189.6,0.00036,14]
[356756554,1743120647769,-153.0,0.00036,2]
[356756555,1743120647779,-201.33502289,0.0003621,2]
[356756556,1743120647787,-261.87841091,0.0003624,2]
[356756557,1743120647797,-1613.0,0.00037022,2]
[356756558,1743120647806,-151.0,0.000372,15]
[356756559,1743120647816,-153.0,0.00037388,2]
[356756560,1743120647825,-153.0,0.00037388,2]
[356756561,1743120647835,-153.0,0.00037388,2]
[356756562,1743120647844,-153.0,0.00037388,2]
[356756563,1743120647852,-153.0,0.00037388,2]
[356756564,1743120647862,-153.0,0.00037388,2]
[356756565,1743120647871,-153.0,0.00037388,2]
[356756566,1743120647880,-153.0,0.00037388,2]
[356756567,1743120647889,-153.0,0.00037388,2]
[356756568,1743120647898,-153.0,0.00037388,2]
[356756569,1743120647907,-1286.449204,0.0003739,14]
[356756570,1743120647916,-1286.449204,0.0003739,14]
[356756571,1743120647926,-151.0,0.0003739,14]
[356756572,1743120647935,-151.0,0.0003739,14]
[356756573,1743120647944,-5931.495755,0.0003739,14]
[356756574,1743120647952,-5931.49576363,0.0003739,14]
[356756575,1743120647961,-151.0,0.0003739,14]
[356756576,1743120647972,-153.0,0.0003739,2]
[356756577,1743120647981,-153.0,0.0003739,2]
[356756578,1743120647990,-153.0,0.0003739,2]
[356756579,1743120647999,-153.0,0.0003739,2]
[356756580,1743120648008,-153.0,0.0003739,2]
[356756581,1743120648017,-153.0,0.0003739,2]
[356756582,1743120648027,-153.0,0.0003739,2]
[356756583,1743120648036,-153.0,0.0003739,2]
[356756584,1743120648046,-153.0,0.0003739,2]
[356756585,1743120648056,-153.0,0.0003739,2]
[356756586,1743120648065,-153.0,0.0003739,2]
[356756587,1743120648075,-153.0,0.0003739,2]
[356756588,1743120648084,-153.0,0.0003739,2]
[356756589,1743120648094,-153.0,0.0003739,2]
[356756590,1743120648103,-153.0,0.0003739,2]
[356756591,1743120648113,-153.0,0.0003739,2]
[356756592,1743120648122,-153.0,0.0003739,2]
[356756593,1743120648131,-153.0,0.0003739,2]
[356756594,1743120648141,-153.0,0.0003739,2]
[356756595,1743120648151,-153.0,0.0003739,2]
[356756596,1743120648160,-153.0,0.0003739,2]
[356756597,1743120648171,-153.0,0.0003739,2]
[356756598,1743120648181,-153.0,0.0003739,2]
[356756599,1743120648191,-153.0,0.0003739,2]
[356756600,1743120648201,-153.0,0.0003739,2]
[356756601,1743120648211,-153.0,0.0003739,2]
[356756602,1743120648222,-153.0,0.0003739,2]
[356756603,1743120648232,-153.0,0.0003739,2]
[356756604,1743120648242,-153.0,0.0003739,2]
[356756605,1743120648253,-153.0,0.0003739,2]
[356756606,1743120648262,-153.0,0.0003739,2]
[356756607,1743120648272,-153.0,0.0003739,2]
[356756608,1743120648281,-153.0,0.0003739,2]
[356756609,1743120648291,-153.0,0.0003739,2]
[356756610,1743120648300,-154.0,0.00037397,2]
[356756611,1743120648309,-1004.35101341,0.000378,2]
[356756612,1743120648320,-185.14255,0.00037915,14]
[356756613,1743120648329,-185.14255,0.00037915,14]
[356756614,1743120648339,-260.672698,0.00037915,14]
[356756615,1743120648348,-260.672698,0.00037915,14]
[356756616,1743120648358,-151.0,0.00037915,14]
[356756617,1743120648366,-432.648596,0.00037915,14]
[356756618,1743120648377,-432.648596,0.00037915,14]
[356756619,1743120648386,-151.0,0.00037915,14]
[356756620,1743120648396,-280.961844,0.00037915,14]
[356756621,1743120648406,-280.961844,0.00037915,14]
[356756622,1743120648416,-1286.449204,0.00037915,14]
[356756623,1743120648425,-1286.449204,0.00037915,14]
[356756624,1743120648434,-151.0,0.00037915,14]
[356756625,1743120648443,-151.0,0.00037915,14]
[356756626,1743120648451,-296.592108,0.00037915,14]
[356756627,1743120648460,-296.5921,0.00037915,14]
[356756628,1743120648470,-189.6,0.00037915,14]
[356756629,1743120648479,-189.599996,0.00037915,14]
[356756630,1743120648489,-21400.9451483,0.0003795,3]
[356756631,1743120648499,-150.0,0.0003796,2]
[356756632,1743120648509,-541.0,0.0003796,2]
[356756633,1743120648520,-1918.0,0.0003796,2]
[356756634,1743120648530,-2262.0,0.0003796,2]
[356756635,1743120648540,-400.0,0.0003796,2]
[356756636,1743120648550,-834.95724862,0.00038146,3]
[356756637,1743120648562,-151.0,0.000383,15]
[356756638,1743120648572,-151.0,0.000383,16]
[356756639,1743120648582,-500.0,0.00038356,120]
[356756640,1743120648591,-500.0,0.00038356,120]
[356756641,1743120648601,-150.17,0.00038356,5]
[356756642,1743120648611,-252.42463714,0.00038356,5]
[356756643,1743120648621,-159.04089363,0.00038356,5]
[356756644,1743120648631,-500.0,0.00038356,5]
[356756645,1743120648640,-150.17,0.00038356,5]
[356756646,1743120648650,-166.0,0.00038356,2]
[356756647,1743120648660,-164.99348867,0.00038356,2]
[356756648,1743120648670,-150.17,0.00038493,5]
[356756649,1743120648679,-528.97377258,0.00038493,5]
[356756650,1743120648689,-150.17,0.00038493,5]
[356756651,1743120648698,-150.17,0.0003863,5]
[356756652,1743120648708,-227.84086437,0.0003863,5]
[356756653,1743120648718,-150.17,0.00038767,5]
[356756654,1743120648728,-600.0,0.000388,120]
[356756655,1743120648737,-213.13233579,0.00038904,5]
[356756656,1743120648747,-6211.58191697,0.00039105,2]
[356756657,1743120648756,-105265.93186,0.00039472,4]
[356756658,1743120648766,-500.0,0.00039473,5]
[356756659,1743120648776,-500.0,0.00039473,5]
[356756660,1743120648786,-500.0,0.00039473,5]
[356756661,1743120648796,-620.15484841,0.00039473,5]
[356756662,1743120648805,-500.0,0.00039473,5]
[356756663,1743120648814,-500.0,0.00039473,5]
[356756664,1743120648824,-646.35739322,0.00039473,5]
[356756665,1743120648833,-500.0,0.00039473,5]
[356756666,1743120648843,-575.4996627,0.00039473,5]
[356756667,1743120648852,-206.74267667,0.00039473,5]
[356756668,1743120648862,-501.15037715,0.00039473,5]
[356756669,1743120648871,-500.0,0.00039473,5]
[356756670,1743120648881,-500.0,0.00039473,5]
[356756671,1743120648891,-500.0,0.00039473,5]
[356756672,1743120648902,-500.0,0.00039473,5]
[356756673,1743120648912,-500.0,0.00039473,5]
[356756674,1743120648923,-500.0,0.00039473,5]
[356756675,1743120648933,-426.85066768,0.00039473,5]
[356756676,1743120648944,-500.0,0.00039473,5]
[356756677,1743120648955,-500.0,0.00039473,5]
[356756678,1743120648965,-432.648596,0.00039473,14]
[356756679,1743120648975,-432.648596,0.00039473,14]
[356756680,1743120648986,-151.0,0.00039473,14]
[356756681,1743120648997,-280.961844,0.00039473,14]
[356756682,1743120649007,-280.961844,0.00039473,14]
[356756683,1743120649017,-1286.449204,0.00039473,14]
[356756684,1743120649027,-1286.449204,0.00039473,14]
[356756685,1743120649038,-151.0,0.00039473,14]
[356756686,1743120649048,-151.0,0.00039473,14]
[356756687,1743120649058,-185.14255,0.0003949,14]
[356756688,1743120649069,-185.14255,0.0003949,14]
[356756689,1743120649079,-260.672698,0.0003949,14]
[356756690,1743120649090,-260.672698,0.0003949,14]
[356756691,1743120649100,-151.0,0.0003949,14]
[356756692,1743120649110,-432.648596,0.0003949,14]
[356756693,1743120649120,-432.648596,0.0003949,14]
[356756694,1743120649130,-151.0,0.0003949,14]
[356756695,1743120649141,-280.961844,0.0003949,14]
[356756696,1743120649150,-280.961844,0.0003949,14]
[356756697,1743120649161,-1286.449204,0.0003949,14]
[356756698,1743120649171,-1286.449205,0.0003949,14]
[356756699,1743120649181,-151.0,0.0003949,14]
[356756700,1743120649191,-195.614009,0.0003949,14]
[356756701,1743120649201,-21400.9451483,0.0003949,3]
[356756702,1743120649211,-549176.38931065,0.000395,2]
[356756737,1743121838202,-272.08,0.00028,2]
[356756738,1743121838213,-544.35580551,0.00028,2]
[356756739,1743121838224,-208.94373325,0.000329,10]
[356756740,1743121838233,-208.94373317,0.00034114,11]
[356756741,1743121838243,-208.94373317,0.00035329,12]
[356756742,1743121838252,-500.0,0.0003589,2]
[356756743,1743121838262,-359.2275074,0.00036027,15]
[356756744,1743121838271,-208.94373317,0.00036543,13]
[356756745,1743121838280,-693.4443823,0.00036788,2]
[356756746,1743121838290,-307.19737203,0.00037289,2]
[356756747,1743121838335,-92.80262797,0.00037289,2]
[356756748,1743121838345,-1719.86257578,0.0003729,120]
[356756749,1743121838357,-7845.92611805,0.0003729,120]
[356756750,1743121838368,-2921.3,0.0003729,120]
[356756751,1743121838379,-1487.08806951,0.0003729,120]
[356756752,1743121838387,-208.94373317,0.00037757,14]
[356756753,1743121838396,-414.54437883,0.00037911,2]
[356756754,1743121838408,-1382.02912494,0.00037911,2]
[356756774,1743121840469,-420.87043536,0.00037911,2]
[356756775,1743121840482,-44.55606087,0.00037911,2]
[356756776,1743121840492,-1812.28586369,0.00037911,2]
[356756777,1743121840531,-101.71413631,0.00037911,2]
[356756778,1743121840542,-400.0,0.00037911,2]
[356756779,1743121840553,-541.0,0.00037911,2]
[356756780,1743121840562,-294.83567507,0.00038356,2]
[356756781,1743121840571,-25.59034634,0.00038971,14]
[356756785,1743121843261,-183.35338683,0.00038971,14]
[356756786,1743121843271,-500.0,0.00039373,5]
[356756787,1743121843281,-465.09313997,0.00039373,5]
[356756796,1743121846163,-34.90686003,0.00039373,5]
[356756797,1743121846174,-500.0,0.00039373,5]
[356756798,1743121846184,-500.0,0.00039373,5]
[356756799,1743121846193,-302.47405497,0.00039373,5]
[356756800,1743121846205,-197.52594503,0.00039373,5]
[356756801,1743121846215,-500.0,0.00039373,5]
[356756802,1743121846224,-500.0,0.00039373,5]
[356756803,1743121846235,-297.6,0.0003939,3]
[356756804,1743121846244,-12402.4065761,0.0003939,3]
[356756805,1743121846284,-15770.50541521,0.0003939,3]
[356756820,1743123032404,-427.48,0.00025,30]
[356756821,1743123032415,-500.0,0.0003589,2]
[356756822,1743123032425,-1312.90646885,0.000369,120]
[356756823,1743123032434,-208.94373317,0.000369,13]
[356756824,1743123032444,-541.0,0.00037746,2]
[356756825,1743123032456,-1914.0,0.00037746,2]
[356756826,1743123032466,-973.15104892,0.00037746,2]
[356756850,1743123040692,-331.0,0.00037746,2]
[356756914,1743124206641,-208.49573123,0.000359,12]
[356756915,1743124206764,-493.55318033,0.00036,30]
[356756916,1743124206957,-208.49573115,0.00037173,13]
[356756917,1743124207034,-1706.0,0.00037746,120]
[356756931,1743124238395,-150.0,0.000248,2]
[356756932,1743124238405,-500.0,0.0003589,2]
[356756933,1743124238414,-236.54546885,0.00037557,11]
[356756934,1743124238423,-400.0,0.00037745,2]
[356756935,1743124238433,-541.0,0.00037746,2]
[356756936,1743124238442,-1914.0,0.00037746,2]
[356756937,1743124238451,-2262.0,0.00037746,2]
[356756938,1743124238460,-11823.42261815,0.00038,120]
[356756939,1743124238494,-8176.57738185,0.00038,120]
[356756940,1743124238503,-208.49573115,0.00038445,14]
[356756941,1743124238513,-166.0,0.00038879,14]
[356756942,1743124238522,-166.0,0.00038879,14]
[356756943,1743124238532,-166.0,0.00038879,14]
[356756944,1743124238542,-166.0,0.00038879,14]
[356756945,1743124238551,-172.0,0.00038879,14]
[356756946,1743124238560,-183.0,0.000389,14]
[356756948,1743124238570,-183.0,0.00039,30]
[356756950,1743124238579,-183.0,0.00039,90]
[356756951,1743124238589,-183.0,0.00039,120]
[356756952,1743124238599,-183.0,0.00039,60]
[356756953,1743124238608,-183.0,0.00039,30]
[356756954,1743124238618,-187.2064859,0.00039,14]
[356756955,1743124238627,-500.0,0.00039173,5]
[356756956,1743124238637,-500.0,0.00039173,5]
[356756957,1743124238646,-500.0,0.00039173,5]
[356756958,1743124238655,-500.0,0.00039173,5]
[356756959,1743124238664,-500.0,0.00039173,5]
[356756960,1743124238674,-500.0,0.00039173,5]
[356756961,1743124238682,-32856.5504011,0.0003919,3]
[356757085,1743124319929,276.77582308,0.000359,120]
[356757086,1743124380942,2011.27730477,0.00037646,120]
[356757131,1743124985300,1001.95313556,0.000379,120]
[356757150,1743125058330,500.0,0.00038,120]
[356757206,1743125322185,1493.61,0.00026,30]
[356757207,1743125322208,148.42555523,0.00026,30]
[356757280,1743125433037,-500.0,0.0003589,2]
[356757281,1743125433047,-957.849,0.00037531,2]
[356757282,1743125433057,-209.04724703,0.000379,14]
[356757283,1743125433066,-205.67504184,0.00038,2]
[356757284,1743125433076,-190.01089494,0.00038256,2]
[356757285,1743125433085,-209.04724701,0.000383,14]
[356757286,1743125433094,-189.2555781,0.00038314,4]
[356757287,1743125433104,-400.0,0.00038354,5]
[356757288,1743125433114,-164.84542202,0.00038355,15]
[356757289,1743125433123,-449.13910164,0.00038355,15]
[356757290,1743125433137,-1899.59,0.00038356,17]
[356757291,1743125433147,-500.0,0.00038356,17]
[356757292,1743125433156,-500.0,0.00038356,17]
[356757294,1743125433167,-750.0,0.00038356,18]
[356757296,1743125433177,-500.0,0.00038356,17]
[356757298,1743125433186,-500.0,0.00038356,17]
[356757300,1743125433196,-500.0,0.00038356,17]
[356757301,1743125433206,-859.57,0.00038356,17]
[356757302,1743125433215,-557.63,0.00038356,17]
[356757303,1743125433225,-500.0,0.00038356,17]
[356757304,1743125433235,-500.0,0.00038356,17]
[356757305,1743125433244,-500.0,0.00038356,17]
[356757306,1743125433254,-560.23812092,0.00038356,17]
[356757307,1743125433264,-500.0,0.00038356,17]
[356757308,1743125433273,-503.60240784,0.00038356,2]
[356757309,1743125433285,-1172.25,0.00038356,17]
[356757310,1743125433294,-2181.65,0.00038356,17]
[356757311,1743125433303,-1165.28,0.00038356,17]
[356757312,1743125433311,-500.0,0.00038356,17]
[356757313,1743125433320,-500.0,0.00038356,17]
[356757314,1743125433329,-798.69,0.00038356,17]
[356757315,1743125433339,-500.0,0.00038356,17]
[356757316,1743125433348,-500.0,0.00038356,17]
[356757317,1743125433357,-1267.58,0.00038356,17]
[356757318,1743125433367,-500.0,0.00038356,17]
[356757319,1743125433376,-500.0,0.00038356,17]
[356757320,1743125433386,-500.0,0.00038356,17]
[356757321,1743125433395,-808.4,0.00038356,17]
[356757322,1743125433405,-500.0,0.00038356,17]
[356757323,1743125433414,-500.0,0.00038356,17]
[356757324,1743125433423,-761.19,0.00038356,17]
[356757325,1743125433434,-500.0,0.00038356,17]
[356757326,1743125433443,-500.0,0.00038356,17]
[356757327,1743125433452,-500.0,0.00038356,17]
[356757328,1743125433461,-967.34,0.00038356,17]
[356757329,1743125433472,-500.0,0.00038356,17]
[356757330,1743125433481,-500.0,0.00038356,17]
[356757331,1743125433491,-500.0,0.00038356,17]
[356757332,1743125433501,-1703.38,0.00038356,17]
[356757333,1743125433510,-2650.74,0.00038356,17]
[356757334,1743125433519,-500.0,0.00038356,17]
[356757335,1743125433528,-500.0,0.00038356,17]
[356757336,1743125433538,-500.0,0.00038356,17]
[356757337,1743125433547,-1731.23,0.00038356,17]
[356757338,1743125433556,-564.09,0.00038356,17]
[356757339,1743125433566,-3973.22,0.00038356,17]
[356757340,1743125433575,-1613.68,0.00038356,17]
[356757341,1743125433584,-4172.69,0.00038356,17]
[356757342,1743125433594,-500.0,0.00038356,17]
[356757343,1743125433604,-4313.71,0.00038356,17]
[356757344,1743125433613,-883.61,0.00038356,17]
[356757345,1743125433623,-500.0,0.00038356,17]
[356757346,1743125433632,-774.36,0.00038356,17]
[356757347,1743125433642,-2007.98,0.00038356,17]
[356757348,1743125433652,-297.66427356,0.00038356,17]
[356757349,1743125433661,-500.0,0.00038356,17]
[356757350,1743125433671,-652.14,0.00038356,17]
[356757351,1743125433681,-2254.52,0.00038356,17]
[356757352,1743125433694,-2472.52,0.00038356,17]
[356757353,1743125433703,-596.13047819,0.00038356,17]
[356757354,1743125433712,-2286.96,0.00038356,17]
[356757355,1743125433722,-500.0,0.00038356,17]
[356757356,1743125433734,-500.0,0.00038356,17]
[356757357,1743125433743,-1797.13,0.00038356,17]
[356757358,1743125433754,-937.2,0.00038356,17]
[356757359,1743125433766,-500.0,0.00038356,17]
[356757360,1743125433775,-500.0,0.00038356,17]
[356757361,1743125433785,-500.0,0.00038356,17]
[356757362,1743125433794,-1069.54,0.00038356,17]
[356757363,1743125433804,-682.14,0.00038356,17]
[356757364,1743125433813,-1246.79,0.00038356,17]
[356757365,1743125433822,-500.0,0.00038356,17]
[356757366,1743125433831,-3629.84,0.00038356,17]
[356757367,1743125433840,-1559.39,0.00038356,17]
[356757368,1743125433850,-4028.8,0.00038356,17]
[356757369,1743125433859,-500.0,0.00038356,17]
[356757370,1743125433869,-1431.14,0.00038356,17]
[356757371,1743125433878,-8168.1,0.00038356,2]
[356757372,1743125433887,-1453.21,0.00038356,17]
[356757373,1743125433897,-2067.75,0.00038356,17]
[356757374,1743125433907,-500.0,0.00038356,17]
[356757375,1743125433916,-32859.35,0.00038356,17]
[356757376,1743125433925,-2277.56,0.00038356,17]
[356757377,1743125433935,-2608.97,0.00038356,17]
[356757378,1743125433944,-500.0,0.00038356,17]
[356757379,1743125433953,-9552.01,0.00038356,17]
[356757380,1743125433963,-610.56,0.00038356,17]
[356757381,1743125433972,-321.55088136,0.00038356,17]
[356757382,1743125433981,-2531.04,0.00038356,17]
[356757383,1743125433991,-19086.29,0.00038356,17]
[356757384,1743125434000,-585.7,0.00038356,17]
[356757385,1743125434010,-2918.04,0.00038356,17]
[356757386,1743125434020,-1496.35,0.00038356,17]
[356757387,1743125434029,-3999.21,0.00038356,17]
[356757388,1743125434039,-8322.91,0.00038356,17]
[356757389,1743125434048,-1180.17,0.00038356,17]
[356757390,1743125434058,-500.0,0.00038356,17]
[356757391,1743125434067,-1072.38,0.00038356,17]
[356757392,1743125434076,-13624.63,0.00038356,17]
[356757393,1743125434086,-754.17,0.00038356,17]
[356757394,1743125434095,-500.0,0.00038356,17]